fUSD/lending_fUSD_20260205
["ID","MTS","AMOUNT","RATE_DAILY","PERIOD"]
[404549947,1770279039222,-26701.08,0.000104,2]
[404549948,1770279039232,-436.4,0.00010428,2]
[404549949,1770279039241,-9999.99,0.00010428,2]
[404549951,1770279039251,-1610.11,0.00010428,2]
[404549953,1770279039261,-150.99,0.00010428,2]
[404549955,1770279039270,-9999.99,0.00010428,2]
[404549957,1770279039279,-5326.57,0.00010428,2]
[404549960,1770279039288,-499.99,0.00010428,2]
[404549962,1770279039299,-1553.77,0.00010428,2]
[404549964,1770279039308,-9999.99,0.00010428,2]
[404549965,1770279039318,-22333.09,0.00010428,2]
[404549968,1770279039327,-14611.7,0.00010428,2]
[404549970,1770279039337,-150.99,0.00010473,2]
[404549972,1770279039346,-887.0,0.00010489,2]
[404549974,1770279039356,-181.70452016,0.00010489,2]
[404549976,1770279039365,-151.0,0.00010494,2]
[404549978,1770279039375,-151.0,0.00010494,2]
[404549980,1770279039384,-151.0,0.00010494,2]
[404549982,1770279039394,-151.0,0.00010494,2]
[404549984,1770279039403,-151.0,0.00010494,2]
[404549986,1770279039413,-500.0,0.00010494,2]
[404549988,1770279039422,-151.0,0.00010494,2]
[404549990,1770279039433,-151.0,0.00010494,2]
[404549992,1770279039443,-500.0,0.00010494,2]
[404549994,1770279039452,-151.0,0.00010494,2]
[404549996,1770279039462,-500.0,0.00010494,2]
[404549998,1770279039471,-151.0,0.00010494,2]
[404550001,1770279039484,-500.0,0.00010494,2]
[404550002,1770279039494,-151.0,0.00010494,2]
[404550004,1770279039504,-500.0,0.00010494,2]
[404550007,1770279039514,-151.0,0.00010494,2]
[404550009,1770279039523,-500.0,0.00010494,2]
[404550011,1770279039532,-500.0,0.00010494,2]
[404550013,1770279039542,-500.0,0.00010494,2]
[404550014,1770279039554,-226.0059482,0.00010494,2]
[404550016,1770279039563,-200.0,0.00010494,2]
[404550018,1770279039573,-200.0,0.00010494,2]
[404550020,1770279039582,-500.0,0.00010494,2]
[404550022,1770279039593,-299.99,0.00010498,2]
[404550024,1770279039603,-999.99,0.00010498,2]
[404550027,1770279039613,-507.83281515,0.00010499,2]
[404550029,1770279039623,-3412.98647683,0.000105,2]
[404550031,1770279039633,-300.0,0.00010598,2]
[404550033,1770279039642,-250.0,0.00010598,2]
[404550035,1770279039652,-250.0,0.00010598,2]
[404550037,1770279039662,-15237.72650114,0.000106,2]
[404550038,1770279039679,-2047.57159741,0.000106,2]
[404550039,1770279039691,-130550.03874463,0.000106,2]
[404550040,1770279039700,-885.0,0.00010676,2]
[404550041,1770279039711,-150.0,0.00010684,2]
[404550042,1770279039723,-500.0,0.00010684,2]
[404550043,1770279039733,-273.38131323,0.00010684,2]
[404550044,1770279039744,-233.53357207,0.00010739,2]
[404550045,1770279039754,-500.0,0.00010739,2]
[404550046,1770279039764,-500.0,0.00010758,2]
[404550047,1770279039774,-1000.0,0.00010758,2]
[404550048,1770279039784,-185.53305553,0.00010794,2]
[404550049,1770279039793,-159.0,0.000108,2]
[404550050,1770279039803,-1000.0,0.00010838,2]
[404550051,1770279039813,-500.0,0.00010847,2]
[404550052,1770279039823,-956.12210173,0.00010857,2]
[404550053,1770279039833,-390.69693124,0.00010858,2]
[404550054,1770279039843,-151.0,0.00010858,2]
[404550055,1770279039852,-500.0,0.00010904,2]
[404550056,1770279039862,-166.66,0.00010959,2]
[404550057,1770279039871,-200.0,0.00011042,2]
[404550058,1770279039881,-200.0,0.00011042,2]
[404550059,1770279039891,-500.0,0.00011042,2]
[404550060,1770279039900,-158.66,0.00011059,2]
[404550061,1770279039910,-150.0,0.00011059,2]
[404550062,1770279039920,-17201.02398838,0.00011059,2]
[404550063,1770279039932,-386.1649995,0.00011059,2]
[404550064,1770279039943,-828.97810023,0.00011059,2]
[404550065,1770279039955,-1128.25873982,0.00011059,2]
[404550068,1770279040417,-347.2861611,0.00011059,2]
[404550069,1770279040427,-151.0,0.00011059,2]
[404550070,1770279040438,-347.2861611,0.00011059,2]
[404550071,1770279040448,-151.0,0.00011059,2]
[404550072,1770279040459,-110.57417207,0.00011059,2]
[404550073,1770279040469,-166.66,0.00011068,2]
[404550074,1770279040479,-11300.38963841,0.00011099,2]
[404550075,1770279040490,-158.66,0.00011156,2]
[404550076,1770279040500,-166.66,0.00011178,2]
[404550077,1770279040510,-255.0,0.00011195,2]
[404550078,1770279040521,-158.66,0.00011253,2]
[404550079,1770279040531,-166.66,0.00011288,2]
[404550080,1770279040541,-1334.48,0.00011328,2]
[404550081,1770279040552,-158.66,0.00011349,2]
[404550082,1770279040562,-6901.47,0.00011397,2]
[404550083,1770279040572,-166.66,0.00011397,2]
[404550084,1770279040582,-158.66,0.00011446,2]
[404550085,1770279040592,-151.0,0.000115,2]
[404550086,1770279040602,-151.0,0.000115,2]
[404550087,1770279040612,-159.15241189,0.000115,2]
[404550088,1770279040622,-151.0,0.000115,2]
[404550089,1770279040633,-151.0,0.000115,2]
[404550090,1770279040643,-151.0,0.000115,2]
[404550091,1770279040653,-151.0,0.000115,2]
[404550092,1770279040663,-151.0,0.000115,2]
[404550093,1770279040674,-151.0,0.000115,2]
[404550094,1770279040683,-151.0,0.000115,2]
[404550095,1770279040693,-151.0,0.000115,2]
[404550096,1770279040703,-151.0,0.000115,2]
[404550097,1770279040713,-151.0,0.000115,2]
[404550098,1770279040724,-151.0,0.000115,2]
[404550099,1770279040734,-151.0,0.000115,2]
[404550100,1770279040744,-151.0,0.000115,2]
[404550101,1770279040753,-151.0,0.000115,2]
[404550102,1770279040763,-151.0,0.000115,2]
[404550103,1770279040778,-1503.0,0.000115,2]
[404550104,1770279040793,-1503.0,0.000115,2]
[404550105,1770279040804,-153.0,0.000115,2]
[404550106,1770279040814,-151.0,0.000115,2]
[404550107,1770279040824,-1503.0,0.000115,2]
[404550108,1770279040834,-153.0,0.000115,2]
[404550109,1770279040845,-153.0,0.000115,2]
[404550110,1770279040855,-151.0,0.000115,2]
[404550111,1770279040865,-153.0,0.000115,2]
[404550112,1770279040875,-153.0,0.000115,2]
[404550113,1770279040885,-153.0,0.000115,2]
[404550114,1770279040894,-153.0,0.000115,2]
[404550115,1770279040904,-156.64248685,0.000115,2]
[404550116,1770279040914,-166.66,0.00011507,2]
[404550117,1770279040924,-185.3,0.00011522,2]
[404550118,1770279040933,-11300.38963839,0.00011534,2]
[404550119,1770279040942,-230.94,0.0001155,2]
[404550120,1770279040952,-2603.1015616,0.00011581,2]
[404550121,1770279040961,-500.0,0.00011589,2]
[404550122,1770279040975,-233.22924952,0.0001159,2]
[404550123,1770279040984,-500.0,0.0001159,2]
[404550124,1770279040994,-152.93,0.00011666,2]
[404550125,1770279041004,-3353.79,0.00011941,2]
[404550126,1770279041014,-500.0,0.00011941,2]
[404550127,1770279041023,-1000.0,0.00012043,2]
[404550128,1770279041034,-500.0,0.00012138,2]
[404550129,1770279041059,-375.0,0.00012306,2]
[404550130,1770279041070,-9869.81,0.00012306,2]
[404550131,1770279041084,-11300.38963839,0.0001233,2]
[404550132,1770279041101,-250.37152364,0.00012583,2]
[404550133,1770279041111,-166.66,0.00012699,2]
[404550134,1770279041122,-159.66,0.000129,2]
[404550135,1770279041132,-166.66,0.00013118,2]
[404550136,1770279041141,-11300.38963839,0.00013125,2]
[404550137,1770279041151,-2603.1015616,0.0001323,2]
[404550138,1770279041160,-1000.0,0.00013247,2]
[404550139,1770279041172,-3240.0,0.00013425,2]
[404550140,1770279041182,-500.0,0.00013439,2]
[404550141,1770279041192,-500.0,0.00013439,2]
[404550142,1770279041202,-500.0,0.00013439,2]
[404550143,1770279041211,-500.0,0.00013439,2]
[404550144,1770279041220,-500.0,0.00013439,2]
[404550145,1770279041230,-500.0,0.00013439,2]
[404550146,1770279041239,-537.35,0.00013439,2]
[404550147,1770279041249,-500.0,0.00013439,2]
[404550148,1770279041259,-500.0,0.00013439,2]
[404550149,1770279041269,-500.0,0.00013439,2]
[404550150,1770279041279,-500.0,0.00013439,2]
[404550151,1770279041289,-500.0,0.00013439,2]
[404550152,1770279041299,-500.0,0.00013439,2]
[404550153,1770279041309,-500.0,0.00013439,2]
[404550154,1770279041320,-500.0,0.00013439,2]
[404550155,1770279041330,-500.0,0.00013439,2]
[404550156,1770279041340,-500.0,0.00013439,2]
[404550157,1770279041350,-500.0,0.00013439,2]
[404550158,1770279041360,-500.0,0.00013439,2]
[404550159,1770279041369,-500.0,0.00013439,2]
[404550160,1770279041379,-500.0,0.00013439,2]
[404550161,1770279041389,-500.0,0.00013439,2]
[404550162,1770279041400,-500.0,0.00013439,2]
[404550163,1770279041416,-500.0,0.00013439,2]
[404550164,1770279041426,-500.0,0.00013439,2]
[404550165,1770279041436,-500.0,0.00013439,2]
[404550166,1770279041450,-500.0,0.00013439,2]
[404550167,1770279041471,-500.0,0.00013439,2]
[404550168,1770279041497,-500.0,0.00013439,2]
[404550169,1770279041507,-500.0,0.00013439,2]
[404550170,1770279041518,-500.0,0.00013439,2]
[404550171,1770279041528,-500.0,0.00013439,2]
[404550172,1770279041538,-500.0,0.00013439,2]
[404550173,1770279041549,-500.0,0.00013439,2]
[404550174,1770279041559,-500.0,0.00013439,2]
[404550175,1770279041569,-500.0,0.00013439,2]
[404550176,1770279041579,-500.0,0.00013439,2]
[404550177,1770279041590,-500.0,0.00013439,2]
[404550178,1770279041600,-500.0,0.00013439,2]
[404550179,1770279041610,-500.0,0.00013439,2]
[404550180,1770279041620,-500.0,0.00013439,2]
[404550181,1770279041630,-500.0,0.00013439,2]
[404550182,1770279041639,-500.0,0.00013439,2]
[404550183,1770279041649,-500.0,0.00013439,2]
[404550184,1770279041660,-500.0,0.00013439,2]
[404550185,1770279041669,-500.0,0.00013439,2]
[404550186,1770279041679,-500.0,0.00013439,2]
[404550187,1770279041689,-500.0,0.00013439,2]
[404550188,1770279041700,-500.0,0.00013439,2]
[404550189,1770279041710,-582.24884999,0.00013439,2]
[404550190,1770279041720,-11876.68,0.0001344,2]
[404550191,1770279041730,-1222.0,0.00013465,2]
[404550192,1770279041740,-159.0,0.000135,2]
[404550193,1770279041751,-166.66,0.00013537,2]
[404550194,1770279041761,-4363.42,0.00013681,2]
[404550195,1770279041771,-500.0,0.00013698,2]
[404550196,1770279041781,-500.0,0.00013698,2]
[404550197,1770279041791,-500.0,0.00013698,2]
[404550198,1770279041801,-500.0,0.00013698,2]
[404550199,1770279041810,-500.0,0.00013698,2]
[404550200,1770279041820,-500.0,0.00013698,2]
[404550201,1770279041830,-500.0,0.00013698,2]
[404550202,1770279041839,-418.4948437,0.00013698,2]
[404550203,1770279041849,-500.0,0.00013698,2]
[404550204,1770279041858,-500.0,0.00013698,2]
[404550205,1770279041868,-500.0,0.00013698,2]
[404550206,1770279041878,-500.0,0.00013698,2]
[404550207,1770279041887,-519.87500599,0.00013698,2]
[404550208,1770279041897,-500.0,0.00013698,2]
[404550209,1770279041907,-500.0,0.00013698,2]
[404550210,1770279041917,-500.0,0.00013698,2]
[404550211,1770279041927,-500.0,0.00013698,2]
[404550212,1770279041937,-500.0,0.00013698,2]
[404550213,1770279041946,-500.0,0.00013698,2]
[404550214,1770279041956,-500.0,0.00013698,2]
[404550215,1770279041966,-500.0,0.00013698,2]
[404550216,1770279041979,-350.20210057,0.00013698,2]
[404550217,1770279041988,-500.0,0.00013698,2]
[404550218,1770279041998,-500.0,0.00013698,2]
[404550219,1770279042007,-500.0,0.00013698,2]
[404550220,1770279042018,-160.87387984,0.00013698,2]
[404550221,1770279042028,-500.0,0.00013698,2]
[404550222,1770279042038,-500.0,0.00013698,2]
[404550223,1770279042051,-500.0,0.00013698,2]
[404550224,1770279042060,-500.0,0.00013698,2]
[404550225,1770279042070,-500.0,0.00013698,2]
[404550226,1770279042082,-590.10761957,0.00013698,2]
[404550227,1770279042091,-500.0,0.00013698,2]
[404550228,1770279042102,-507.70655637,0.00013698,2]
[404550229,1770279042112,-500.0,0.00013698,2]
[404550230,1770279042121,-500.0,0.00013698,2]
[404550231,1770279042131,-288.02611632,0.00013698,2]
[404550232,1770279042141,-500.0,0.00013698,2]
[404550233,1770279042151,-500.0,0.00013698,2]
[404550234,1770279042161,-500.0,0.00013698,2]
[404550235,1770279042171,-500.0,0.00013698,2]
[404550236,1770279042180,-500.0,0.00013698,2]
[404550237,1770279042190,-500.0,0.00013698,2]
[404550238,1770279042199,-500.0,0.00013698,2]
[404550239,1770279042209,-500.0,0.00013698,2]
[404550240,1770279042219,-500.0,0.00013698,2]
[404550241,1770279042229,-500.0,0.00013698,2]
[404550242,1770279042239,-500.0,0.00013698,2]
[404550243,1770279042249,-500.0,0.00013698,2]
[404550244,1770279042259,-500.0,0.00013698,2]
[404550245,1770279042269,-500.0,0.00013698,2]
[404550246,1770279042278,-500.0,0.00013698,2]
[404550247,1770279042288,-500.0,0.00013698,2]
[404550248,1770279042298,-500.0,0.00013698,2]
[404550249,1770279042309,-500.0,0.00013698,2]
[404550250,1770279042319,-500.0,0.00013698,2]
[404550251,1770279042329,-328.80573398,0.00013698,2]
[404550252,1770279042339,-500.0,0.00013698,2]
[404550253,1770279042349,-500.0,0.00013698,2]
[404550254,1770279042359,-500.0,0.00013698,2]
[404550255,1770279042369,-405.3888533,0.00013698,2]
[404550256,1770279042378,-500.0,0.00013698,2]
[404550257,1770279042388,-501.96335117,0.00013698,2]
[404550258,1770279042398,-500.0,0.00013698,2]
[404550259,1770279042407,-500.0,0.00013698,2]
[404550260,1770279042417,-500.0,0.00013698,2]
[404550261,1770279042427,-500.0,0.00013698,2]
[404550262,1770279042437,-447.07793737,0.00013698,2]
[404550263,1770279042447,-500.0,0.00013698,2]
[404550264,1770279042456,-500.0,0.00013698,2]
[404550265,1770279042466,-711.92,0.00013699,2]
[404550266,1770279042477,-2482.56,0.00013699,2]
[404550267,1770279042487,-1991.02,0.00013699,2]
[404550268,1770279042498,-200.0,0.00013699,2]
[404550269,1770279042508,-152.88679959,0.00013699,2]
[404550270,1770279042517,-1232.94,0.00013735,2]
[404550271,1770279042527,-351.5182,0.00013875,2]
[404550272,1770279042538,-26496.8487,0.00013876,2]
[404550273,1770279042547,-11300.38963839,0.00013921,2]
[404550274,1770279042558,-166.66,0.00013956,2]
[404550275,1770279042568,-500.0,0.00014068,2]
[404550276,1770279042579,-500.0,0.00014068,2]
[404550277,1770279042589,-457.99797698,0.00014068,2]
[404550278,1770279042600,-519.49,0.00014068,2]
[404550279,1770279042610,-519.49,0.00014068,2]
[404550280,1770279042767,-519.49,0.00014068,2]
[404550281,1770279042819,-519.49,0.00014068,2]
[404550282,1770279042828,-519.49,0.00014068,2]
[404550283,1770279042839,-519.49,0.00014068,2]
[404550284,1770279042849,-519.49,0.00014068,2]
[404550285,1770279042858,-519.49,0.00014068,2]
[404550286,1770279042868,-500.0,0.00014329,2]
[404550287,1770279042877,-166.66,0.00014375,2]
[404550288,1770279042887,-1991.02,0.00014384,2]
[404550289,1770279042896,-1000.0,0.00014451,2]
[404550290,1770279042906,-150.0,0.00014452,5]
[404550291,1770279042915,-519.49,0.00014494,2]
[404550292,1770279042924,-160.0,0.00014566,2]
[404550293,1770279042934,-198.81,0.00014576,2]
[404550294,1770279042943,-1054.3,0.00014598,2]
[404550295,1770279042953,-500.0,0.000146,2]
[404550296,1770279042963,-173.07272258,0.000146,2]
[404550297,1770279042977,-500.0,0.000146,2]
[404550298,1770279042987,-500.0,0.000146,2]
[404550299,1770279042997,-500.0,0.000146,2]
[404550300,1770279043006,-500.0,0.000146,2]
[404550301,1770279043017,-500.0,0.000146,2]
[404550302,1770279043027,-500.0,0.000146,2]
[404550303,1770279043037,-500.0,0.000146,2]
[404550304,1770279043047,-500.0,0.000146,2]
[404550305,1770279043059,-500.0,0.000146,2]
[404550306,1770279043068,-500.0,0.000146,2]
[404550307,1770279043078,-500.0,0.000146,2]
[404550308,1770279043088,-500.0,0.000146,2]
[404550309,1770279043098,-500.0,0.000146,2]
[404550310,1770279043108,-500.0,0.000146,2]
[404550311,1770279043117,-500.0,0.000146,2]
[404550312,1770279043127,-500.0,0.000146,2]
[404550313,1770279043137,-159.0,0.000147,2]
[404550314,1770279043147,-11300.38963839,0.00014717,2]
[404550315,1770279043157,-166.66,0.00014794,2]
[404550316,1770279043166,-29759.72262329,0.00015,2]
[404550317,1770279043176,-418.21759378,0.00015,2]
[404550318,1770279043186,-247.97,0.00015028,2]
[404550319,1770279043195,-450.32,0.00015068,2]
[404550320,1770279043205,-1991.02,0.00015068,2]
[404550321,1770279043214,-951.124593,0.00015146,7]
[404550322,1770279043224,-1000.0,0.00015148,2]
[404550323,1770279043234,-500.0,0.00015148,2]
[404550324,1770279043244,-1000.0,0.00015148,2]
[404550325,1770279043253,-347.37162909,0.00015148,2]
[404550326,1770279043263,-230.94,0.00015177,2]
[404550327,1770279043273,-500.0,0.00015277,2]
[404550328,1770279043283,-1517.64,0.000153,2]
[404550329,1770279043292,-166.57,0.00015324,2]
[404550330,1770279043304,-152.93,0.00015342,2]
[404550331,1770279043315,-508.83519453,0.000154,2]
[404550332,1770279043324,-1560.32,0.000154,2]
[404550333,1770279043336,-500.0,0.00015495,2]
[404550334,1770279043346,-11300.38963839,0.00015513,2]
[404550335,1770279043356,-500.0,0.00015595,2]
[404550336,1770279043366,-578.20924308,0.00015596,2]
[404550337,1770279043376,-2000.0,0.00015596,2]
[404550338,1770279043385,-1449.10348087,0.00015596,2]
[404550339,1770279043395,-2000.0,0.00015596,2]
[404550340,1770279043405,-2000.0,0.00015596,2]
[404550341,1770279043415,-500.0,0.00015596,2]
[404550342,1770279043425,-2000.0,0.00015596,2]
[404550343,1770279043435,-500.0,0.00015596,2]
[404550344,1770279043445,-500.0,0.00015596,2]
[404550345,1770279043455,-2000.0,0.00015596,2]
[404550346,1770279043465,-500.0,0.00015596,2]
[404550347,1770279043475,-2000.0,0.00015596,2]
[404550348,1770279043484,-500.0,0.00015596,2]
[404550349,1770279043495,-2000.0,0.00015596,2]
[404550350,1770279043505,-500.0,0.00015596,2]
[404550351,1770279043514,-174.61919141,0.00015596,2]
[404550352,1770279043524,-500.0,0.00015596,2]
[404550353,1770279043534,-1508.30623238,0.00015596,2]
[404550354,1770279043545,-216.07161542,0.00015596,2]
[404550355,1770279043556,-743.50770149,0.00015596,2]
[404550356,1770279043567,-322.6107,0.00015596,2]
[404550357,1770279043577,-250.0,0.00015596,2]
[404550358,1770279043587,-250.0,0.00015596,2]
[404550359,1770279043597,-250.0,0.00015596,2]
[404550360,1770279043607,-250.0,0.00015596,2]
[404550361,1770279043617,-250.0,0.00015596,2]
[404550362,1770279043627,-250.0,0.00015596,2]
[404550363,1770279043637,-250.0,0.00015596,2]
[404550364,1770279043646,-228.82569288,0.00015596,2]
[404550365,1770279043657,-209.40437684,0.00015596,2]
[404550366,1770279043667,-247.97,0.00015606,2]
[404550367,1770279043677,-217.15233878,0.00015651,2]
[404550368,1770279043687,-1500.0,0.00015696,2]
[404550369,1770279043697,-1004.24108191,0.00015696,2]
[404550370,1770279043707,-1600.0,0.00015696,2]
[404550371,1770279043717,-225.18697532,0.00015706,2]
[404550372,1770279043726,-152.05768541,0.0001571,2]
[404550373,1770279043736,-1991.02,0.00015753,2]
[404550374,1770279043746,-233.51889341,0.00015761,2]
[404550375,1770279043755,-2046.60264728,0.00015807,2]
[404550376,1770279043765,-500.0,0.00015808,2]
[404550377,1770279043775,-242.15909246,0.00015816,2]
[404550378,1770279043784,-251.11897888,0.00015871,2]
[404550379,1770279043792,-197.54,0.00015918,2]
[404550380,1770279043802,-260.4103811,0.00015926,2]
[404550381,1770279043810,-166.55,0.00015947,2]
[404550382,1770279043819,-152.0,0.00015955,4]
[404550383,1770279043827,-270.0455652,0.00015981,2]
[404550384,1770279043836,-957.19260386,0.00016,2]
[404550385,1770279043845,-320.47368523,0.00016,2]
[404550386,1770279043854,-5956.53345956,0.00016,2]
[404550387,1770279043862,-280.03725112,0.00016036,2]
[404550388,1770279043870,-267.0,0.00016084,2]
[404550389,1770279043879,-151.0,0.00016084,2]
[404550390,1770279043888,-200.0,0.00016084,2]
[404550391,1770279043897,-277.537,0.00016084,2]
[404550392,1770279043906,-229.28,0.00016084,2]
[404550393,1770279043916,-179.178,0.00016084,2]
[404550394,1770279043926,-158.945,0.00016084,2]
[404550395,1770279043935,-250.0,0.00016084,2]
[404550396,1770279043945,-191.693,0.00016084,2]
[404550397,1770279043955,-164.442,0.00016084,2]
[404550398,1770279043966,-212.815,0.00016084,2]
[404550399,1770279043979,-250.0,0.00016084,2]
[404550400,1770279043990,-232.419,0.00016084,2]
[404550401,1770279043999,-171.0,0.00016084,2]
[404550402,1770279044011,-1335.0,0.00016084,2]
[404550403,1770279044021,-616.445,0.00016084,2]
[404550404,1770279044031,-3491.028,0.00016084,2]
[404550405,1770279044041,-150.0,0.00016084,2]
[404550406,1770279044051,-1271.0,0.00016084,2]
[404550407,1770279044060,-917.0,0.00016084,2]
[404550408,1770279044070,-1205.0,0.00016084,2]
[404550409,1770279044080,-3254.0,0.00016084,2]
[404550410,1770279044090,-1317.0,0.00016084,2]
[404550411,1770279044099,-2466.995,0.00016084,2]
[404550412,1770279044109,-568.607,0.00016084,2]
[404550413,1770279044119,-290.39862941,0.00016091,2]
[404550414,1770279044128,-181.08010149,0.00016144,2]
[404550415,1770279044138,-209.98794847,0.00016144,2]
[404550416,1770279044147,-301.1433787,0.00016146,2]
[404550417,1770279044156,-1291.24412758,0.00016244,2]
[404550418,1770279044166,-11300.38963839,0.00016308,2]
[404550419,1770279044175,-152.05768541,0.00016315,2]
[404550420,1770279044184,-450.32,0.00016438,2]
[404550421,1770279044195,-1991.02,0.00016438,2]
[404550422,1770279044205,-1000.0,0.00016438,2]
[404550423,1770279044215,-180.34618069,0.000165,2]
[404550424,1770279044225,-519.49,0.00016509,2]
[404550425,1770279044235,-187.78006525,0.00016692,2]
[404550426,1770279044245,-1000.0,0.00016712,2]
[404550427,1770279044255,-165.83,0.00016712,2]
[404550428,1770279044264,-13829.0,0.00016827,2]
[404550429,1770279044274,-230.94,0.00016888,2]
[404550430,1770279044283,-152.05768541,0.00016919,2]
[404550431,1770279044293,-152.62,0.0001692,2]
[404550432,1770279044304,-469.0,0.0001693,2]
[404550433,1770279044313,-508.0,0.00016958,2]
[404550434,1770279044321,-334.5472959,0.00016965,2]
[404550435,1770279044330,-304.0,0.00016971,2]
[404550436,1770279044340,-166.57,0.00016977,2]
[404550437,1770279044349,-152.93,0.00016986,2]
[404550438,1770279044359,-1000.0,0.00016986,2]
[404550439,1770279044368,-469.0,0.00017006,2]
[404550440,1770279044377,-11300.38963839,0.00017104,2]
[404550441,1770279044387,-200.0,0.00017109,2]
[404550442,1770279044396,-469.0,0.00017146,2]
[404550444,1770279044406,-152.0,0.00017196,5]
[404550445,1770279044416,-469.0,0.00017214,2]
[404550446,1770279044425,-469.0,0.00017235,2]
[404550447,1770279044435,-194.72792766,0.0001724,2]
[404550448,1770279044444,-200.0,0.00017256,2]
[404550449,1770279044454,-1000.0,0.0001726,2]
[404550450,1770279044463,-469.0,0.00017264,2]
[404550451,1770279044473,-469.0,0.00017274,2]
[404550452,1770279044483,-469.0,0.00017316,2]
[404550453,1770279044492,-469.0,0.00017341,2]
[404550454,1770279044502,-469.0,0.00017371,2]
[404550455,1770279044512,-469.0,0.00017398,2]
[404550456,1770279044522,-793.0,0.00017438,2]
[404550457,1770279044532,-469.0,0.00017473,2]
[404550458,1770279044542,-469.0,0.00017478,2]
[404550459,1770279044551,-168.0,0.00017515,2]
[404550460,1770279044561,-773.71,0.00017518,2]
[404550461,1770279044570,-152.05768541,0.00017523,2]
[404550462,1770279044580,-1000.0,0.00017534,2]
[404550463,1770279044594,-168.0,0.00017539,2]
[404550464,1770279044603,-469.0,0.00017564,2]
[404550465,1770279044613,-469.0,0.00017576,2]
[404550466,1770279044624,-168.0,0.0001776,2]
[404550467,1770279044634,-168.0,0.00017761,2]
[404550468,1770279044644,-201.93286099,0.00017788,2]
[404550469,1770279044653,-1000.0,0.00017808,2]
[404550470,1770279044663,-500.0,0.00017856,2]
[404550471,1770279044674,-500.0,0.00017856,2]
[404550472,1770279044683,-200.0,0.00017869,2]
[404550473,1770279044693,-150.0,0.00017899,2]
[404550474,1770279044702,-252.01216033,0.00017899,2]
[404550475,1770279044713,-4800.0,0.000179,2]
[404550476,1770279044723,-25000.0,0.000179,3]
[404550477,1770279044732,-11300.38963839,0.000179,2]
[404550478,1770279044742,-8707.33655551,0.000179,2]
[404550479,1770279044751,-376.34667058,0.000179,2]
[404550480,1770279044762,-557.09587234,0.000179,2]
[404550481,1770279044772,-1066.21775424,0.000179,3]
[404550482,1770279044781,-9689.9061987,0.000179,2]
[404550483,1770279044791,-25571.81576767,0.000179,2]
[404550484,1770279044801,-45111.71413833,0.000179,2]
[404550485,1770279044811,-67484.42639653,0.000179,2]
[404550486,1770279044821,-91308.8286,0.000179,2]
[404550487,1770279044830,-792.603827,0.000179,7]
[404550488,1770279044840,-1101.54215647,0.0001797,2]
[404550489,1770279044851,-500.0,0.00017973,2]
[404550490,1770279044861,-500.0,0.00017973,2]
[404550491,1770279044872,-500.0,0.00017973,2]
[404550492,1770279044882,-309.44398841,0.00017973,2]
[404550493,1770279044893,-500.0,0.00017973,2]
[404550494,1770279044902,-500.0,0.00017973,2]